bitfinex/quotes_SOLUSD_20250930
["timestamp","ask_amount","ask_price","bid_price","bid_amount"]
[1759259787999,20.8,207.98,207.97,0.2]
[1759259788176,22.45727692,207.98,207.92,37.68]
[1759259788377,1.65727692,207.93,207.92,37.68]
[1759259788577,2.33727692,207.93,207.92,37.68]
[1759259788786,7.14658774,207.93,207.92,37.68]
[1759259788977,23.13727692,207.93,207.92,37.68]
[1759259789197,27.94658774,207.93,207.92,72.1]
[1759259790577,26.28931082,207.93,207.92,72.1]
[1759259790777,27.94658774,207.93,207.92,72.1]
[1759259794101,27.94658774,207.93,207.92,37.68]
[1759259794305,28.23091088,207.93,207.92,34.62]
[1759259794684,46.88329562,207.93,207.9,0.2]
[1759259794890,29.0863846,207.91,207.9,0.2]
[1759259795087,33.89615805,207.91,207.9,0.2]
[1759259795288,34.57615805,207.91,207.9,0.2]
[1759259795787,34.57615805,207.91,207.9,25.06]
[1759259796602,34.86048119,207.91,207.9,25.06]
[1759259796912,34.86048119,207.91,207.88,0.2]
[1759259796913,0.28432314,207.9,207.88,0.2]
[1759259797082,23.42160006,207.89,207.88,0.2]
[1759259798289,23.42160006,207.89,207.88,26.48]
[1759259798502,28.23183624,207.89,207.88,26.48]
[1759259802703,27.2675131,207.89,207.88,26.48]
[1759259803109,25.61023618,207.89,207.88,26.48]
[1759259803289,27.2675131,207.89,207.88,26.48]
[1759259804812,1.65727692,207.89,207.88,26.48]
[1759259805003,1.65727692,207.89,207.88,27.15]
[1759259805310,1.65727692,207.89,207.88,26.48]
[1759259806324,1.65727692,207.89,207.88,27.15]
[1759259807008,1.65727692,207.9,207.88,31.96036784]
[1759259807307,22.45727692,207.9,207.89,0.67]
[1759259807504,22.45727692,207.9,207.88,26.48]
[1759259807699,22.45727692,207.9,207.88,27.15]
[1759259807893,1.65727692,207.89,207.88,26.48]
[1759259808096,1.65727692,207.89,207.88,27.15]
[1759259808891,1.65727692,207.89,207.88,26.48]
[1759259809285,20.8,207.9,207.88,27.15]
[1759259809489,1.65727692,207.89,207.88,27.15]
[1759259812889,1.65727692,207.89,207.88,26.48]
[1759259814226,20.8,207.9,207.88,26.48]
[1759259814515,1.65727692,207.89,207.88,26.48]
[1759259815501,2.31727692,207.89,207.88,26.48]
[1759259816103,6.4675131,207.89,207.88,26.48]
[1759259816495,6.4675131,207.89,207.88,34.62]
[1759259816808,6.4675131,207.89,207.88,0.2]
[1759259816991,7.1275131,207.89,207.88,34.62]
[1759259817525,1.65727692,207.89,207.88,34.62]
[1759259817739,20.8,207.9,207.88,35.3]
[1759259818021,20.8,207.9,207.89,0.68]
[1759259818415,22.45727692,207.9,207.88,34.62]
[1759259818601,1.65727692,207.89,207.88,34.62]
[1759259820214,1.65727692,207.89,207.88,35.3]
[1759259820403,1.65727692,207.9,207.88,35.3]
[1759259820722,1.65727692,207.89,207.88,34.62]
[1759259822013,6.4675131,207.89,207.88,34.62]
[1759259822212,7.1275131,207.89,207.88,34.62]
[1759259822747,1.65727692,207.89,207.88,34.62]
[1759259823096,1.65727692,207.9,207.88,35.3]
[1759259823519,1.65727692,207.9,207.88,34.62]
[1759259823722,1.65727692,207.89,207.88,34.62]
[1759259825341,6.4675131,207.89,207.88,34.62]
[1759259826140,1.65727692,207.89,207.88,34.62]
[1759259827448,22.45727692,207.89,207.88,34.62]
[1759259829030,1.65727692,207.91,207.88,35.3]
[1759259829229,1.65727692,207.9,207.88,34.62]
[1759259829426,1.65727692,207.89,207.88,34.62]
[1759259830855,1.65727692,207.89,207.88,34.6]
[1759259832451,6.4675131,207.89,207.88,34.6]
[1759259832853,1.65727692,207.89,207.88,34.6]
[1759259833855,20.8,207.92,207.88,35.28]
[1759259834044,20.8,207.9,207.89,0.68]
[1759259834244,1.65727692,207.92,207.89,0.68]
[1759259834450,27.2668308,207.92,207.88,34.6]
[1759259834648,27.2668308,207.92,207.88,35.28]
[1759259835159,20.8,207.91,207.88,39.4104617]
[1759259835456,20.8,207.91,207.89,0.68]
[1759259835953,22.45727692,207.91,207.89,0.68]
[1759259836154,20.8,207.91,207.88,39.41037223]
[1759259836333,1.65727692,207.92,207.88,39.41037223]
[1759259836536,20.8,207.91,207.88,39.41037223]
[1759259836744,20.8,207.91,207.88,40.09037223]
[1759259837255,0.66,207.98,207.89,14.27559401]
[1759259837554,0.66,208.03,207.92,0.28432314]
[1759259837731,1.65727692,208.01,207.94,13.59559401]
[1759259838051,0.66,208.06,207.96,13.59559401]
[1759259838255,0.66,208.06,207.97,35.36432314]
[1759259838432,1.65727692,208.03,207.99,13.59559401]
[1759259838637,1.65727692,208.0,207.93,0.68]
[1759259838831,1.65727692,208.0,207.94,34.4]
[1759259838832,1.65727692,207.96,207.94,34.4]
[1759259839446,1.65727692,207.95,207.94,34.4]
[1759259840655,2.31727692,207.95,207.94,34.4]
[1759259841152,20.8,207.93,207.88,0.2]
[1759259841337,1.65727692,207.92,207.89,34.38]
[1759259842451,1.65727692,207.9,207.88,0.2]
[1759259842632,1.65727692,207.89,207.88,0.2]
[1759259842829,2.34727692,207.89,207.88,34.58]
[1759259843440,7.1575131,207.89,207.88,34.58]
[1759259844148,20.8,207.9,207.88,34.58]
[1759259844352,2.59364214,207.89,207.88,34.58]
[1759259847651,7.40387832,207.89,207.88,34.58]
[1759259849177,0.7,207.91,207.88,34.58]
[1759259849347,2.59364214,207.89,207.88,34.58]
[1759259850953,3.29364214,207.89,207.88,34.58]
[1759259851358,20.8,207.92,207.88,34.58]
[1759259851665,2.59364214,207.91,207.88,35.25]
[1759259852247,2.59364214,207.93,207.89,14.26559401]
[1759259852468,2.59364214,207.93,207.9,0.67]
[1759259852666,2.59364214,207.93,207.91,34.38]
[1759259852854,20.8,207.93,207.91,34.38]
[1759259853059,2.59364214,207.94,207.91,34.38]
[1759259853450,20.8,207.93,207.91,34.38]
[1759259854547,4.80860999,207.97,207.92,0.67]
[1759259854875,2.59364214,207.96,207.93,0.67]
[1759259855059,7.40225213,207.97,207.94,34.36]
[1759259855766,20.8,207.95,207.94,34.36]
[1759259855969,23.39364214,207.95,207.94,34.36]
[1759259856169,24.09364214,207.95,207.94,34.36]
[1759259857371,28.90249042,207.95,207.94,34.36]
[1759259857788,23.39364214,207.95,207.94,34.36]
[1759259858866,7.40249042,207.95,207.94,34.36]
[1759259859070,28.90249042,207.95,207.94,34.36]
[1759259860250,28.90249042,207.95,207.88,0.87]
[1759259860479,20.8,207.87,207.81,2.51126936]
[1759259860655,2.59364214,207.82,207.78,0.2]
[1759259860978,25.98728428,207.79,207.78,0.2]
[1759259861163,26.68728428,207.79,207.78,15.1]
[1759259861475,20.8,207.75,207.67,0.2]
[1759259861677,2.59364214,207.68,207.67,0.2]
[1759259862672,2.59364214,207.68,207.67,34.56]
[1759259863485,2.59364214,207.68,207.67,0.2]
[1759259863675,2.59364214,207.68,207.67,34.56]
[1759259863877,2.59364214,207.68,207.67,0.2]
[1759259864255,2.59364214,207.68,207.67,34.56]
[1759259864680,2.59364214,207.68,207.67,0.2]
[1759259864870,2.59364214,207.68,207.67,34.56]
[1759259865194,2.59364214,207.68,207.67,0.2]
[1759259865359,2.59364214,207.68,207.67,34.56]
[1759259866371,0.7,207.68,207.67,34.56]
[1759259866556,3.29364214,207.68,207.67,34.56]
[1759259873168,5.88728428,207.68,207.67,0.2]
[1759259873489,20.8,207.65,207.64,37.52]
[1759259873666,24.11364214,207.65,207.64,37.52]
[1759259873867,2.59364214,207.63,207.62,1e-08]
[1759259874285,3.31364214,207.63,207.62,1e-08]
[1759259874567,3.31364214,207.63,207.62,34.38000001]
[1759259875389,8.12990183,207.63,207.62,34.38000001]
[1759259876790,28.92990183,207.63,207.62,34.38000001]
[1759259881981,28.20990183,207.63,207.62,34.38000001]
[1759259882299,23.39364214,207.63,207.62,34.38000001]
[1759259883099,12.75833004,207.67,207.62,34.38000001]
[1759259883100,4.8155639,207.66,207.62,34.38000001]
[1759259883395,2.59364214,207.64,207.62,34.38000001]
[1759259883593,2.59364214,207.63,207.62,1e-08]
[1759259883806,2.59364214,207.63,207.62,34.38000001]
[1759259884174,8.12990183,207.63,207.62,34.38000001]
[1759259884381,7.40990183,207.63,207.62,34.38000001]
[1759259884575,7.40990183,207.63,207.62,1e-08]
[1759259884780,7.40990183,207.63,207.62,34.38000001]
[1759259884980,4.81601972,207.65,207.62,34.38000001]
[1759259885199,2.59364214,207.63,207.62,34.38000001]
[1759259886604,7.40990183,207.63,207.62,34.38000001]
[1759259887006,7.40990183,207.63,207.62,1e-08]
[1759259887305,7.40990183,207.63,207.62,34.38000001]
[1759259887491,4.81625969,207.63,207.62,34.38000001]
[1759259887821,7.40990183,207.63,207.62,34.38000001]
[1759259888705,7.40990183,207.63,207.62,1e-08]
[1759259888889,8.12990183,207.63,207.62,1e-08]
[1759259889094,4.81625969,207.63,207.62,34.38000001]
[1759259889296,7.40990183,207.63,207.62,34.38000001]
[1759259889806,2.59364214,207.63,207.62,34.38000001]
[1759259890493,2.59364214,207.63,207.62,1e-08]
[1759259890702,2.59364214,207.63,207.62,34.38000001]
[1759259891207,7.40990183,207.63,207.62,1e-08]
[1759259891583,7.40990183,207.63,207.62,34.38000001]
[1759259891992,7.40990183,207.63,207.62,1e-08]
[1759259892193,8.12990183,207.63,207.62,34.38000001]
[1759259892408,8.12990183,207.63,207.62,1e-08]
[1759259892613,8.12990183,207.63,207.62,34.38000001]
[1759259892787,8.12990183,207.63,207.62,1e-08]
[1759259893107,8.12990183,207.63,207.62,34.38000001]
[1759259893299,8.12990183,207.63,207.62,1e-08]
[1759259893500,8.12990183,207.63,207.62,34.38000001]
[1759259894186,7.40990183,207.63,207.62,34.38000001]
[1759259894805,8.12990183,207.63,207.62,34.38000001]
[1759259895324,7.40990183,207.63,207.62,34.38000001]
[1759259896010,8.12990183,207.63,207.62,34.38000001]
[1759259899214,5.53625969,207.63,207.62,34.38000001]
[1759259899393,8.12990183,207.63,207.62,34.38000001]
[1759259904104,28.20990183,207.63,207.62,34.38000001]
[1759259904304,27.28068388,207.63,207.62,34.38000001]
[1759259904702,27.94068388,207.63,207.62,34.38000001]
[1759259904999,27.94068388,207.63,207.62,1e-08]
[1759259905201,27.94068388,207.63,207.62,34.38000001]
[1759259906212,27.28068388,207.63,207.62,34.38000001]
[1759259906715,4.81625969,207.63,207.62,34.38000001]
[1759259906918,6.48068388,207.63,207.62,34.38000001]
[1759259908223,7.14068388,207.63,207.62,1e-08]
[1759259908416,7.14068388,207.63,207.62,34.38000001]
[1759259908817,6.48068388,207.63,207.62,34.38000001]
[1759259909425,7.14068388,207.63,207.62,34.38000001]
[1759259909828,6.48068388,207.63,207.62,34.38000001]
[1759259910207,7.14068388,207.63,207.62,34.38000001]
[1759259910408,6.48068388,207.63,207.62,34.38000001]
[1759259911117,1.66442419,207.63,207.62,34.38000001]
[1759259913322,6.48068388,207.63,207.62,34.38000001]
[1759259913634,7.14068388,207.63,207.62,34.38000001]
[1759259913826,27.94068388,207.63,207.62,1e-08]
[1759259914143,27.94068388,207.63,207.62,34.38000001]
[1759259915606,27.94068388,207.63,207.56,37.61]
[1759259915607,64.06263157,207.63,207.56,37.58]
[1759259915828,1.66442419,207.57,207.56,37.58]
[1759259916029,8.98212095,207.57,207.56,37.58]
[1759259916327,29.78212095,207.57,207.56,37.58]
[1759259916707,29.78212095,207.57,207.56,71.94]
[1759259917614,34.59977282,207.57,207.56,71.94]
[1759259919132,46.64390251,207.57,207.5,0.2]
[1759259919330,1.66442419,207.51,207.5,0.2]
[1759259920534,1.66442419,207.51,207.5,34.56]
[1759259921135,6.48346905,207.51,207.5,34.56]
[1759259924720,1.66442419,207.51,207.5,34.56]
[1759259924927,4.81881624,207.52,207.5,34.56]
[1759259925131,1.66442419,207.53,207.51,0.03]
[1759259925358,1.66442419,207.52,207.5,34.56]
[1759259925523,1.66442419,207.52,207.5,34.59]
[1759259926142,1.66442419,207.52,207.51,0.03]
[1759259926525,1.66442419,207.53,207.51,0.03]
[1759259926732,1.66442419,207.53,207.5,34.56]
[1759259926932,1.66442419,207.53,207.5,34.59]
[1759259927235,1.66442419,207.52,207.5,34.56]
[1759259928932,1.66442419,207.53,207.5,34.56]
[1759259929239,1.66442419,207.52,207.5,34.56]
[1759259930437,1.66442419,207.51,207.5,34.56]
[1759259931936,2.32442419,207.51,207.5,0.2]
[1759259932239,2.32442419,207.51,207.5,34.56]
[1759259932542,6.48346905,207.51,207.5,34.56]
[1759259932865,7.14346905,207.51,207.5,34.56]
[1759259934747,6.48346905,207.51,207.5,34.56]
[1759259935447,1.66442419,207.51,207.5,34.56]
[1759259937242,7.19346905,207.51,207.5,0.2]
[1759259937448,7.19346905,207.51,207.5,34.56]
[1759259939134,7.19346905,207.51,207.45,37.6]
[1759259939340,1.66442419,207.48,207.45,42.42038185]
[1759259940454,1.66442419,207.48,207.46,34.36]
[1759259942449,1.66442419,207.48,207.45,37.6]
[1759259942450,2.37442419,207.47,207.45,37.6]
[1759259942643,1.66442419,207.46,207.45,37.6]
[1759259942838,1.66442419,207.46,207.45,71.96]
[1759259943553,4.81953889,207.49,207.45,71.96]
[1759259943855,1.66442419,207.48,207.45,76.78039126]
[1759259944244,20.8,207.5,207.45,76.78039126]
[1759259944444,1.66442419,207.52,207.46,0.31432314]
[1759259944649,1.66442419,207.52,207.47,34.36]
[1759259944843,1.66442419,207.51,207.47,34.36]
[1759259945155,0.71,207.52,207.47,34.36]
[1759259945451,1.66442419,207.51,207.47,34.36]
[1759259945648,1.66442419,207.51,207.47,39.17990146]
[1759259945848,1.66442419,207.5,207.47,39.17990146]
[1759259946046,1.66442419,207.5,207.47,39.20990146]
[1759259946251,1.66442419,207.51,207.47,39.20990146]
[1759259946639,1.66442419,207.5,207.47,39.17990146]
[1759259947245,0.71,207.49,207.47,34.36]
[1759259947655,1.66442419,207.5,207.47,39.17996004]
[1759259947841,0.71,207.53,207.47,39.17996004]
[1759259948049,1.66442419,207.5,207.47,39.17996004]
[1759259948244,20.8,207.54,207.48,0.31432314]
[1759259948560,0.71,207.61,207.5,13.87991715]
[1759259948752,0.71,207.61,207.47,37.66989497]
[1759259948753,1.66442419,207.59,207.53,0.28432314]
[1759259948953,1.66442419,207.56,207.54,34.36]
[1759259949258,2.37442419,207.55,207.5,0.28432314]
[1759259949459,1.66442419,207.54,207.51,34.36]
[1759259949758,2.37442419,207.55,207.51,34.36]
[1759259949956,1.66442419,207.54,207.51,34.36]
[1759259952657,1.66442419,207.54,207.45,58.4]
[1759259952658,20.8,207.51,207.45,37.6]
[1759259952857,1.66442419,207.49,207.46,34.34]
[1759259953162,1.66442419,207.5,207.46,34.34]
[1759259953777,2.37442419,207.49,207.46,34.34]
[1759259953940,1.66442419,207.49,207.46,34.34]
[1759259954146,1.66442419,207.5,207.46,34.34]
[1759259954447,2.37442419,207.5,207.46,34.34]
[1759259954959,1.66442419,207.49,207.46,34.34]
[1759259955393,2.37442419,207.49,207.46,34.34]
[1759259955572,2.37442419,207.49,207.47,34.34]
[1759259955946,1.66442419,207.48,207.47,34.34]
[1759259956466,2.37442419,207.48,207.47,34.34]
[1759259956665,2.37442419,207.48,207.45,37.6]
[1759259957167,2.37442419,207.48,207.46,34.34]
[1759259957367,1.66442419,207.47,207.46,34.34]
[1759259957573,4.81954811,207.49,207.46,34.34]
[1759259957753,1.66442419,207.47,207.46,34.34]
[1759259958654,1.66442419,207.48,207.46,34.34]
[1759259958970,2.38442419,207.48,207.46,34.34]
[1759259959557,2.38442419,207.48,207.47,34.34]
[1759259959959,1.66442419,207.48,207.47,34.34]
[1759259960560,26.33885741,207.52,207.47,34.34]
[1759259960864,26.33885741,207.52,207.47,39.18981708]
[1759259960865,1.66442419,207.51,207.47,39.18981708]
[1759259961372,0.2907,207.48,207.47,39.44414022]
[1759259961873,0.2907,207.48,207.47,34.62432314]
[1759259962261,1.95512419,207.48,207.47,34.34]
[1759259962468,2.67512419,207.48,207.46,0.28432314]
[1759259962665,2.67512419,207.48,207.47,34.34]
[1759259962892,1.95512419,207.48,207.47,34.34]
[1759259963070,2.61512419,207.48,207.47,34.34]
[1759259963477,1.95512419,207.48,207.47,34.34]
[1759259964280,2.8943445,207.48,207.47,34.34]
[1759259967889,0.2907,207.48,207.47,34.34]
[1759259968178,0.2907,207.48,207.46,0.28432314]
[1759259968355,2.8943445,207.48,207.47,34.34]
[1759259970281,0.2907,207.48,207.47,34.34]
[1759259970477,2.8943445,207.48,207.47,34.34]
[1759259971775,0.2907,207.48,207.47,34.34]
[1759259971963,2.8943445,207.48,207.47,34.34]
[1759259972470,2.8943445,207.48,207.45,37.6]
[1759259972471,8.37408616,207.48,207.45,37.6]
[1759259972661,2.6036445,207.46,207.45,37.6]
[1759259972861,3.2636445,207.46,207.45,71.94]
[1759259973257,3.2636445,207.46,207.45,37.6]
[1759259973470,3.2636445,207.46,207.45,71.94]
[1759259974964,8.0838508,207.46,207.45,71.94]
[1759259976578,0.66,207.46,207.45,71.94]
[1759259976882,2.6036445,207.46,207.45,71.94]
[1759259977677,2.6036445,207.47,207.45,71.94]
[1759259977907,2.6036445,207.48,207.45,76.7604193]
[1759259978263,0.66,207.5,207.45,76.7604193]
[1759259978264,2.6036445,207.49,207.45,76.7604193]
[1759259978583,3.2636445,207.49,207.45,76.7604193]
[1759259980466,2.6036445,207.48,207.45,76.7604193]
[1759259980680,2.6036445,207.48,207.45,71.94]
[1759259983273,2.8943445,207.48,207.45,71.94]
[1759259983480,3.5543445,207.48,207.45,71.94]
[1759259983779,2.6036445,207.47,207.45,71.94]
[1759259985265,3.2636445,207.47,207.45,71.94]
[1759259986894,2.6036445,207.47,207.45,71.94]
[1759259991889,7.42363057,207.47,207.45,71.94]
[1759259992082,3.2636445,207.46,207.45,71.94]
[1759259992589,4.81998607,207.47,207.45,71.94]
[1759259992788,2.6036445,207.46,207.45,71.94]
[1759259994302,0.67,207.48,207.45,71.94]
[1759259994488,20.8,207.49,207.45,76.7903892]
[1759259994799,2.6036445,207.48,207.45,76.7603892]
[1759259995295,0.67,207.51,207.46,0.31432314]
[1759259995496,12.04581816,207.55,207.46,0.31432314]
[1759259995497,2.6036445,207.5,207.47,34.34]
[1759259995802,3.2736445,207.5,207.47,34.34]
[1759259996496,2.6036445,207.5,207.47,39.18994477]
[1759259996701,2.6036445,207.5,207.47,39.15994477]
[1759259999284,3.2736445,207.49,207.47,4.81994477]
[1759259999489,3.2736445,207.49,207.48,34.32]
[1759259999879,2.6036445,207.5,207.48,34.32]
[1759260000084,2.6036445,207.51,207.48,34.32]
[1759260001199,21.47,207.52,207.48,39.1397029]
[1759260001398,2.6036445,207.51,207.48,39.1397029]
[1759260001805,3.2736445,207.51,207.48,39.1397029]
[1759260002407,2.6036445,207.53,207.48,39.1697029]
[1759260002591,2.6036445,207.54,207.49,0.31432314]
[1759260002793,2.6036445,207.54,207.5,34.32]
[1759260002991,3.2736445,207.53,207.5,34.32]
[1759260003393,2.6036445,207.51,207.46,4.82019091]
[1759260003596,3.2736445,207.5,207.47,34.60432314]
[1759260003899,0.67,207.49,207.48,34.32]
[1759260004406,2.6036445,207.5,207.48,34.32]
[1759260004605,2.6036445,207.51,207.48,34.32]
[1759260004909,3.2736445,207.51,207.48,34.32]
[1759260005289,3.2736445,207.51,207.48,39.13969661]
[1759260006102,3.5643445,207.51,207.48,39.13969661]
[1759260006413,3.5643445,207.51,207.48,34.32]
[1759260007499,0.2907,207.51,207.48,39.16967441]
[1759260007698,0.2907,207.51,207.49,0.28432314]
[1759260007931,0.2907,207.51,207.5,34.60432314]
[1759260008109,0.2907,207.51,207.5,48.22991715]
[1759260008292,0.2607,207.51,207.5,48.22991715]
[1759260008492,3.2736445,207.62,207.51,13.87991715]
[1759260008718,0.67,207.62,207.54,0.28432314]
[1759260008889,0.67,207.62,207.57,0.28432314]
[1759260009090,0.67,207.62,207.58,34.32]
[1759260009505,0.67,207.62,207.59,4.81718772]
[1759260009818,0.67,207.62,207.6,34.32]
[1759260010014,4.81558665,207.66,207.6,34.32]
[1759260010313,3.2736445,207.65,207.6,34.32]
[1759260010498,0.2,207.67,207.61,0.28432314]
[1759260010701,0.2,207.67,207.63,0.28432314]
[1759260010914,0.2,207.67,207.65,0.28432314]
[1759260011117,0.2,207.67,207.66,34.58432314]
[1759260011502,0.2,207.67,207.66,39.39988704]
[1759260012213,0.2,207.67,207.66,0.28432314]
[1759260012410,0.2,207.67,207.66,34.58432314]
[1759260013412,0.87,207.67,207.65,0.28432314]
[1759260013616,0.2,207.67,207.66,34.3]
[1759260014108,0.87,207.67,207.66,34.3]
[1759260015121,0.2,207.67,207.66,34.3]
[1759260015317,0.2,207.67,207.66,34.58432314]
[1759260016026,0.2,207.67,207.66,39.39988704]
[1759260017221,0.2,207.67,207.66,34.58432314]
[1759260017527,0.2,207.67,207.66,52.99548105]
[1759260018313,0.2,207.69,207.68,34.39559401]
[1759260018493,0.2,207.75,207.69,13.87991715]
[1759260018699,0.2,207.75,207.71,13.87991715]
[1759260018927,0.2,207.75,207.73,0.28432314]
[1759260019114,0.2,207.75,207.74,34.56432314]
[1759260019820,0.92,207.75,207.74,34.56432314]
[1759260020816,0.92,207.75,207.72,0.28432314]
[1759260021018,0.92,207.75,207.73,34.28]
[1759260021019,2.6036445,207.74,207.73,34.28]
[1759260021209,3.3236445,207.74,207.73,34.28]
[1759260021716,0.2,207.75,207.74,0.28432314]
[1759260022104,0.2,207.75,207.74,5.09803258]
[1759260023620,0.92,207.75,207.71,0.28432314]
[1759260023802,0.72,207.74,207.72,34.28]
[1759260024611,0.72,207.74,207.72,39.09415022]
[1759260026013,0.2,207.75,207.72,39.09415022]
[1759260026221,0.92,207.75,207.72,39.09415022]
[1759260027134,0.2,207.75,207.73,48.13991715]
[1759260028107,0.2,207.75,207.74,5.09803258]
[1759260029026,0.2,207.75,207.74,18.69362659]
[1759260029723,0.92,207.75,207.74,0.28432314]
[1759260029921,0.92,207.75,207.74,34.54432314]
[1759260030120,0.2,207.75,207.74,34.54432314]
[1759260030529,0.92,207.75,207.74,34.54432314]
[1759260031212,0.92,207.75,207.74,0.28432314]
[1759260031530,0.92,207.75,207.74,34.26]
[1759260040631,7.39518918,207.75,207.74,34.24]
[1759260044246,2.58171145,207.75,207.74,34.24]
[1759260045821,7.39518918,207.75,207.74,34.24]
[1759260047038,2.58171145,207.75,207.74,34.24]
[1759260047245,0.2,207.75,207.74,34.24]
[1759260047738,0.2,207.75,207.74,39.05370944]
[1759260047940,0.2,207.75,207.74,52.93362659]
[1759260051430,0.2,207.75,207.74,39.33803258]
[1759260052847,0.2,207.75,207.74,52.93362659]
[1759260054455,1e-08,207.75,207.74,52.93362659]
[1759260054756,1e-08,207.75,207.74,73.73362659]
[1759260055132,1e-08,207.75,207.74,75.66017686]
[1759260055358,1e-08,207.75,207.74,73.73362659]
[1759260059456,1e-08,207.75,207.74,75.66017686]
[1759260060253,0.2,207.83,207.75,13.87991715]
[1759260060433,0.2,207.83,207.78,0.28432314]
[1759260060636,0.2,207.83,207.82,0.28432314]
[1759260060838,0.88,207.83,207.82,48.09991715]
[1759260062151,0.88,207.83,207.82,52.91177356]
[1759260062461,0.2,207.83,207.82,52.91177356]
[1759260063859,0.2,207.83,207.82,75.63758179]
[1759260064036,1e-08,207.83,207.82,75.63758179]
[1759260065344,1e-08,207.83,207.82,90.08758179]
[1759260065957,1e-08,207.84,207.83,13.87991715]
[1759260067558,1e-08,207.84,207.83,52.89154203]
[1759260069060,1e-08,207.84,207.83,52.60721889]
[1759260069360,1e-08,207.84,207.83,52.89154203]
[1759260070862,0.68000001,207.84,207.83,18.40721889]
[1759260071261,0.68000001,207.84,207.83,18.69154203]
[1759260071559,1e-08,207.84,207.83,52.89154203]
[1759260074851,1e-08,207.84,207.83,53.37270451]
[1759260075266,1e-08,207.84,207.83,67.82270451]
[1759260076451,1e-08,207.84,207.83,19.17270451]
[1759260076651,1e-08,207.84,207.83,53.37270451]
[1759260076866,1e-08,207.84,207.83,74.17270451]
[1759260077573,1e-08,207.84,207.83,88.62270451]
[1759260077967,1e-08,207.84,207.83,69.74832732]
[1759260078154,0.2,207.88,207.87,13.59559401]
[1759260078363,0.2,207.88,207.87,48.05991715]
[1759260078661,0.2,207.88,207.87,90.39061614]
[1759260081472,1e-08,207.88,207.87,104.84061614]
[1759260081685,0.67,207.94,207.91,13.59559401]
[1759260081867,0.67,207.94,207.93,13.87991715]
[1759260082069,0.67,207.94,207.93,48.05991715]
[1759260083182,0.67,207.94,207.93,52.86922797]
[1759260083365,0.91,207.96,207.93,52.86922797]
[1759260083564,0.71,207.95,207.94,0.28432314]
[1759260083765,0.71,207.95,207.93,64.89250503]
[1759260083766,0.2,207.96,207.95,34.67991715]
[1759260083963,0.2,207.96,207.95,68.85991715]
[1759260084172,0.91,207.96,207.95,68.85991715]
[1759260085364,0.91,207.96,207.95,88.11876543]
[1759260085564,0.91,207.96,207.95,73.66876543]
[1759260085979,0.91,207.96,207.9,13.94957107]
[1759260086182,0.71,207.95,207.91,52.58536746]
[1759260086388,0.71,207.94,207.92,0.28432314]
[1759260086573,0.71,207.94,207.93,34.18]
[1759260087886,3.30165086,207.94,207.93,34.18]
[1759260088662,3.30165086,207.94,207.93,38.98931082]
[1759260089086,0.71,207.94,207.93,38.98931082]
[1759260089665,0.71,207.94,207.93,39.27363396]
[1759260091686,0.71,207.94,207.93,52.86922797]
[1759260092271,0.71,207.94,207.93,18.68922797]
[1759260092482,0.71,207.94,207.93,52.84922797]
[1759260092995,0.71,207.94,207.93,4.80931082]
[1759260092996,3.30165086,207.94,207.93,4.80931082]
[1759260093190,3.30165086,207.94,207.93,76.48931082]
[1759260093768,3.30165086,207.94,207.93,71.68]
[1759260094277,3.30165086,207.94,207.93,76.48931082]
[1759260095167,0.71,207.94,207.93,76.48931082]
[1759260095370,3.30165086,207.94,207.93,76.48931082]
[1759260095872,0.71,207.94,207.93,42.32931082]
[1759260096280,0.71,207.94,207.93,76.77363396]
[1759260096778,0.71,207.94,207.93,71.96432314]
[1759260097170,20.8,208.03,207.93,71.96432314]
[1759260097171,0.71,207.97,207.95,0.28432314]
[1759260097374,2.59165086,207.99,207.96,47.75559401]